fUSD/lending_fUSD_20251006
["ID","MTS","AMOUNT","RATE_DAILY","PERIOD"]
[389667594,1759780239821,-150.5,0.00029295,2]
[389667595,1759780239831,-150.5,0.00029295,2]
[389667596,1759780239841,-150.5,0.00029295,2]
[389667597,1759780239852,-150.5,0.00029295,2]
[389667598,1759780239861,-150.5,0.00029295,2]
[389667599,1759780239870,-150.5,0.00029295,2]
[389667600,1759780239879,-150.5,0.00029295,2]
[389667601,1759780239891,-150.5,0.00029295,2]
[389667602,1759780239900,-150.5,0.00029295,2]
[389667603,1759780239909,-150.5,0.00029295,2]
[389667604,1759780239918,-150.5,0.00029295,2]
[389667605,1759780239928,-150.5,0.00029295,2]
[389667606,1759780239938,-150.5,0.00029295,2]
[389667607,1759780239954,-150.5,0.00029295,2]
[389667608,1759780239963,-150.5,0.00029295,2]
[389667609,1759780239973,-150.5,0.00029295,2]
[389667610,1759780239990,-150.5,0.00029295,2]
[389667611,1759780240009,-150.5,0.00029295,2]
[389667612,1759780240023,-150.5,0.00029295,2]
[389667613,1759780240033,-150.5,0.00029295,2]
[389667614,1759780240042,-1026.44756223,0.00029295,2]
[389667615,1759780240051,-102698.104956,0.00029295,3]
[389667616,1759780240061,-150.5,0.00029295,2]
[389667617,1759780240071,-150.5,0.00029295,2]
[389667618,1759780240080,-150.5,0.00029295,2]
[389667619,1759780240090,-150.5,0.00029295,2]
[389667620,1759780240099,-1900.0,0.000293,10]
[389667621,1759780240109,-173.62,0.000293,2]
[389667622,1759780240118,-151.0,0.00029302,7]
[389667623,1759780240127,-3459806.58231627,0.00029305,11]
[389667624,1759780240137,-171163.50826,0.00029305,3]
[389667625,1759780240146,-170527.945118,0.00029305,3]
[389667626,1759780240156,-150.5,0.00029305,2]
[389667627,1759780240166,-150.5,0.00029305,2]
[389667628,1759780240175,-150.5,0.00029305,2]
[389667629,1759780240184,-150.5,0.00029305,2]
[389667630,1759780240194,-150.5,0.00029305,2]
[389667631,1759780240203,-357.90159303,0.00029315,2]
[389667632,1759780240212,-500.0,0.00029315,7]
[389667633,1759780240221,-500.0,0.00029315,7]
[389667634,1759780240231,-400.0,0.00029315,7]
[389667635,1759780240241,-2315.13,0.00029315,7]
[389667636,1759780240250,-2315.13,0.00029315,7]
[389667637,1759780240260,-2315.13,0.00029315,7]
[389667638,1759780240271,-2315.13,0.00029315,7]
[389667639,1759780240280,-553.19,0.00029315,7]
[389667640,1759780240289,-553.19,0.00029315,7]
[389667641,1759780240298,-553.19,0.00029315,7]
[389667642,1759780240307,-553.19,0.00029315,7]
[389667643,1759780240316,-500.0,0.00029315,7]
[389667644,1759780240326,-500.0,0.00029315,7]
[389667645,1759780240335,-500.0,0.00029315,7]
[389667646,1759780240344,-500.0,0.00029315,7]
[389667648,1759780240354,-500.0,0.00029315,7]
[389667649,1759780240363,-519.12728611,0.00029315,7]
[389667650,1759780240372,-500.0,0.00029315,7]
[389667651,1759780240382,-500.0,0.00029315,7]
[389667652,1759780240391,-500.0,0.00029315,7]
[389667653,1759780240401,-500.0,0.00029315,7]
[389667654,1759780240410,-500.0,0.00029315,7]
[389667655,1759780240419,-500.0,0.00029315,7]
[389667656,1759780240428,-500.0,0.00029315,7]
[389667657,1759780240437,-500.0,0.00029315,7]
[389667658,1759780240446,-500.0,0.00029315,7]
[389667659,1759780240455,-503.45776545,0.00029315,7]
[389667660,1759780240465,-500.0,0.00029315,7]
[389667661,1759780240474,-500.0,0.00029315,7]
[389667662,1759780240483,-500.0,0.00029315,7]
[389667663,1759780240492,-500.0,0.00029315,7]
[389667664,1759780240501,-500.0,0.00029315,7]
[389667665,1759780240510,-500.0,0.00029315,7]
[389667666,1759780240519,-500.0,0.00029315,7]
[389667667,1759780240528,-500.0,0.00029315,7]
[389667668,1759780240537,-500.0,0.00029315,7]
[389667669,1759780240546,-500.0,0.00029315,7]
[389667670,1759780240555,-500.0,0.00029315,7]
[389667671,1759780240564,-500.0,0.00029315,7]
[389667672,1759780240573,-500.0,0.00029315,7]
[389667673,1759780240582,-500.0,0.00029315,7]
[389667674,1759780240591,-500.0,0.00029315,7]
[389667675,1759780240599,-500.0,0.00029315,7]
[389667676,1759780240609,-500.0,0.00029315,7]
[389667677,1759780240618,-500.0,0.00029315,7]
[389667678,1759780240627,-500.0,0.00029315,7]
[389667679,1759780240636,-500.0,0.00029315,7]
[389667680,1759780240645,-500.0,0.00029315,7]
[389667681,1759780240653,-400.0,0.00029315,7]
[389667682,1759780240662,-500.0,0.00029315,7]
[389667683,1759780240671,-500.0,0.00029315,7]
[389667684,1759780240678,-500.0,0.00029315,7]
[389667685,1759780240688,-500.0,0.00029315,7]
[389667686,1759780240697,-500.0,0.00029315,7]
[389667687,1759780240705,-714.34,0.00029315,7]
[389667688,1759780240714,-714.34,0.00029315,7]
[389667689,1759780240723,-714.34,0.00029315,7]
[389667690,1759780240733,-714.34,0.00029315,7]
[389667691,1759780240742,-714.34,0.00029315,7]
[389667692,1759780240751,-404.91760898,0.00029315,7]
[389667693,1759780240760,-500.0,0.00029315,7]
[389667694,1759780240770,-500.0,0.00029315,7]
[389667695,1759780240779,-630.95607001,0.00029315,7]
[389667696,1759780240789,-500.0,0.00029315,7]
[389667697,1759780240798,-400.31669933,0.00029315,7]
[389667698,1759780240807,-500.0,0.00029315,7]
[389667699,1759780240819,-309.1265828,0.00029315,7]
[389667700,1759780240828,-500.0,0.00029315,7]
[389667701,1759780240838,-615.41175795,0.00029315,7]
[389667702,1759780240847,-500.0,0.00029315,7]
[389667703,1759780240858,-500.0,0.00029315,7]
[389667704,1759780240867,-500.0,0.00029315,7]
[389667705,1759780240875,-500.0,0.00029315,7]
[389667706,1759780240885,-500.0,0.00029315,7]
[389667707,1759780240894,-500.0,0.00029315,7]
[389667708,1759780240903,-251.49314482,0.00029315,7]
[389667709,1759780240912,-500.0,0.00029315,7]
[389667710,1759780240920,-500.0,0.00029315,7]
[389667711,1759780240929,-500.0,0.00029315,7]
[389667712,1759780240939,-500.0,0.00029315,7]
[389667713,1759780240947,-500.0,0.00029315,7]
[389667714,1759780240960,-500.0,0.00029315,7]
[389667715,1759780240970,-500.0,0.00029315,7]
[389667716,1759780240979,-500.0,0.00029315,7]
[389667717,1759780240988,-500.0,0.00029315,7]
[389667718,1759780240997,-500.0,0.00029315,7]
[389667719,1759780241007,-500.0,0.00029315,7]
[389667720,1759780241017,-500.0,0.00029315,7]
[389667721,1759780241026,-466.28,0.00029315,7]
[389667722,1759780241035,-500.0,0.00029315,7]
[389667723,1759780241044,-500.0,0.00029315,7]
[389667724,1759780241053,-500.0,0.00029315,7]
[389667725,1759780241062,-500.0,0.00029315,7]
[389667726,1759780241072,-500.0,0.00029315,7]
[389667727,1759780241081,-500.0,0.00029315,7]
[389667728,1759780241091,-500.0,0.00029315,7]
[389667729,1759780241100,-500.0,0.00029315,7]
[389667730,1759780241109,-500.0,0.00029315,7]
[389667731,1759780241118,-500.0,0.00029315,7]
[389667732,1759780241128,-500.0,0.00029315,7]
[389667733,1759780241137,-500.23310007,0.00029315,7]
[389667734,1759780241146,-500.0,0.00029315,7]
[389667735,1759780241155,-500.0,0.00029315,7]
[389667736,1759780241164,-500.0,0.00029315,7]
[389667737,1759780241173,-500.0,0.00029315,7]
[389667738,1759780241183,-500.0,0.00029315,7]
[389667739,1759780241192,-500.0,0.00029315,7]
[389667740,1759780241201,-500.0,0.00029315,7]
[389667741,1759780241211,-295.06146643,0.00029315,7]
[389667742,1759780241221,-500.0,0.00029315,7]
[389667743,1759780241231,-500.0,0.00029315,7]
[389667744,1759780241240,-508.3782614,0.00029315,7]
[389667745,1759780241249,-503.98956089,0.00029315,7]
[389667746,1759780241259,-200.0,0.00029315,7]
[389667747,1759780241269,-500.0,0.00029315,7]
[389667748,1759780241279,-500.0,0.00029315,7]
[389667749,1759780241288,-500.0,0.00029315,7]
[389667750,1759780241299,-500.0,0.00029315,7]
[389667751,1759780241309,-500.0,0.00029315,7]
[389667752,1759780241318,-500.0,0.00029315,7]
[389667753,1759780241329,-532.89922326,0.00029315,7]
[389667754,1759780241339,-500.0,0.00029315,7]
[389667755,1759780241348,-500.0,0.00029315,7]
[389667756,1759780241359,-500.0,0.00029315,7]
[389667757,1759780241368,-500.0,0.00029315,7]
[389667758,1759780241377,-500.0,0.00029315,7]
[389667759,1759780241387,-500.0,0.00029315,7]
[389667760,1759780241396,-500.0,0.00029315,7]
[389667761,1759780241406,-500.0,0.00029315,7]
[389667762,1759780241450,-500.0,0.00029315,7]
[389667763,1759780241460,-500.0,0.00029315,7]
[389667764,1759780241469,-500.0,0.00029315,7]
[389667765,1759780241478,-500.0,0.00029315,7]
[389667766,1759780241487,-500.0,0.00029315,7]
[389667767,1759780241496,-213.7087113,0.00029315,7]
[389667768,1759780241505,-500.0,0.00029315,7]
[389667769,1759780241515,-500.0,0.00029315,7]
[389667770,1759780241524,-500.0,0.00029315,7]
[389667771,1759780241533,-500.0,0.00029315,7]
[389667772,1759780241541,-500.0,0.00029315,7]
[389667773,1759780241550,-500.0,0.00029315,7]
[389667774,1759780241559,-500.0,0.00029315,7]
[389667775,1759780241567,-1000.0,0.00029315,7]
[389667776,1759780241576,-1000.0,0.00029315,7]
[389667777,1759780241585,-367.06394998,0.00029315,7]
[389667778,1759780241594,-1000.0,0.00029315,30]
[389667779,1759780241603,-1000.0,0.00029315,30]
[389667780,1759780241612,-1000.0,0.00029315,30]
[389667781,1759780241621,-500.0,0.00029315,7]
[389667782,1759780241630,-500.0,0.00029315,7]
[389667783,1759780241639,-500.0,0.00029315,7]
[389667784,1759780241648,-500.0,0.00029315,7]
[389667785,1759780241659,-20963.5,0.00029315,7]
[389667786,1759780241668,-20963.5,0.00029315,7]
[389667787,1759780241677,-20963.5,0.00029315,7]
[389667788,1759780241686,-20963.5,0.00029315,7]
[389667789,1759780241694,-500.0,0.00029315,7]
[389667790,1759780241703,-896.12,0.00029315,7]
[389667791,1759780241712,-896.12,0.00029315,7]
[389667792,1759780241721,-896.12,0.00029315,7]
[389667793,1759780241730,-500.0,0.00029315,7]
[389667794,1759780241739,-500.0,0.00029315,7]
[389667795,1759780241748,-500.0,0.00029315,7]
[389667796,1759780241756,-500.0,0.00029315,7]
[389667797,1759780241767,-605.90361125,0.00029315,7]
[389667798,1759780241776,-37033.65,0.00029315,7]
[389667799,1759780241786,-500.0,0.00029315,7]
[389667800,1759780241795,-37033.65,0.00029315,7]
[389667801,1759780241805,-500.0,0.00029315,7]
[389667802,1759780241817,-37033.65,0.00029315,7]
[389667803,1759780241826,-500.0,0.00029315,7]
[389667804,1759780241836,-37033.65,0.00029315,7]
[389667805,1759780241846,-37033.65,0.00029315,7]
[389667806,1759780241857,-599.18539349,0.00029315,7]
[389667807,1759780241867,-500.0,0.00029315,7]
[389667808,1759780241876,-500.0,0.00029315,7]
[389667809,1759780241887,-500.0,0.00029315,7]
[389667810,1759780241896,-500.0,0.00029315,7]
[389667811,1759780241905,-500.0,0.00029315,7]
[389667812,1759780241915,-500.0,0.00029315,7]
[389667813,1759780241924,-500.0,0.00029315,7]
[389667814,1759780241933,-500.0,0.00029315,7]
[389667815,1759780241944,-500.0,0.00029315,7]
[389667816,1759780241953,-500.0,0.00029315,7]
[389667817,1759780241962,-500.0,0.00029315,7]
[389667818,1759780241971,-400.0,0.00029315,7]
[389667819,1759780241982,-561.30564899,0.00029315,7]
[389667820,1759780241991,-500.0,0.00029315,7]
[389667821,1759780242000,-283.06371623,0.00029315,7]
[389667822,1759780242010,-500.0,0.00029315,7]
[389667823,1759780242019,-500.0,0.00029315,7]
[389667824,1759780242029,-500.0,0.00029315,7]
[389667825,1759780242038,-500.0,0.00029315,7]
[389667826,1759780242048,-500.0,0.00029315,7]
[389667827,1759780242057,-687.7,0.00029315,7]
[389667828,1759780242066,-687.7,0.00029315,7]
[389667829,1759780242076,-687.7,0.00029315,7]
[389667830,1759780242086,-500.0,0.00029315,7]
[389667831,1759780242096,-687.7,0.00029315,7]
[389667832,1759780242105,-271.8132242,0.00029315,7]
[389667833,1759780242114,-687.7,0.00029315,7]
[389667834,1759780242123,-500.0,0.00029315,7]
[389667835,1759780242132,-500.0,0.00029315,7]
[389667836,1759780242142,-500.0,0.00029315,7]
[389667837,1759780242151,-500.0,0.00029315,7]
[389667838,1759780242160,-500.0,0.00029315,7]
[389667839,1759780242169,-151.36166837,0.00029315,7]
[389667840,1759780242178,-500.0,0.00029315,7]
[389667841,1759780242187,-500.0,0.00029315,7]
[389667842,1759780242196,-376.72723295,0.00029315,7]
[389667843,1759780242205,-500.0,0.00029315,7]
[389667844,1759780242213,-500.0,0.00029315,7]
[389667845,1759780242223,-500.0,0.00029315,7]
[389667846,1759780242233,-500.0,0.00029315,7]
[389667847,1759780242240,-500.0,0.00029315,7]
[389667848,1759780242249,-165.41,0.00029315,7]
[389667849,1759780242258,-500.0,0.00029315,7]
[389667850,1759780242268,-500.0,0.00029315,7]
[389667851,1759780242278,-3631.06,0.00029315,7]
[389667852,1759780242287,-3631.06,0.00029315,7]
[389667853,1759780242296,-3631.06,0.00029315,7]
[389667854,1759780242305,-3631.06,0.00029315,7]
[389667855,1759780242314,-3631.06,0.00029315,7]
[389667856,1759780242323,-7977.48,0.00029315,7]
[389667857,1759780242332,-7977.48,0.00029315,7]
[389667858,1759780242341,-7977.48,0.00029315,7]
[389667859,1759780242350,-7977.48,0.00029315,7]
[389667860,1759780242359,-271.10628107,0.00029315,7]
[389667861,1759780242368,-1938.73,0.00029315,7]
[389667862,1759780242377,-1938.73,0.00029315,7]
[389667863,1759780242386,-1938.73,0.00029315,7]
[389667864,1759780242395,-1938.73,0.00029315,7]
[389667865,1759780242404,-1938.73,0.00029315,7]
[389667866,1759780242413,-400.0,0.00029315,7]
[389667867,1759780242422,-3488.98,0.00029315,7]
[389667868,1759780242432,-3488.98,0.00029315,7]
[389667869,1759780242447,-3488.98,0.00029315,7]
[389667870,1759780242460,-543.0,0.00029315,7]
[389667871,1759780242469,-500.0,0.00029315,7]
[389667872,1759780242478,-644.70421012,0.00029315,7]
[389667873,1759780242487,-588.94594535,0.00029315,2]
[389667874,1759780242496,-152.72670243,0.00029322,15]
[389667875,1759780242504,-174.85507816,0.00029337,2]
[389667876,1759780242514,-654.95,0.00029358,2]
[389667877,1759780242524,-500.0,0.00029373,5]
[389667878,1759780242533,-500.0,0.00029373,5]
[389667879,1759780242543,-500.0,0.00029373,5]
[389667880,1759780242553,-500.0,0.00029373,5]
[389667881,1759780242562,-300.0,0.000294,10]
[389667882,1759780242571,-200.0,0.000294,10]
[389667883,1759780242580,-155.30489138,0.00029404,2]
[389667884,1759780242589,-357.90159303,0.00029424,2]
[389667885,1759780242598,-150.0,0.00029425,2]
[389667886,1759780242607,-500.0,0.00029437,15]
[389667887,1759780242616,-152.72670243,0.00029457,15]
[389667888,1759780242625,-174.85507816,0.00029468,2]
[389667889,1759780242634,-215.96957321,0.0002947,2]
[389667891,1759780242643,-174.16345954,0.0002949,5]
[389667893,1759780242652,-2000.0,0.000295,2]
[389667894,1759780242661,-300.0,0.000295,10]
[389667895,1759780242670,-200.0,0.000295,10]
[389667896,1759780242678,-158.88013132,0.0002951,2]
[389667897,1759780242686,-316.90336929,0.00029515,2]
[389667898,1759780242695,-155.30489138,0.00029518,2]
[389667899,1759780242704,-357.90159303,0.00029534,2]
[389667900,1759780242713,-956.52479179,0.00029558,2]
[389667901,1759780242721,-5290.62202328,0.00029558,2]
[389667902,1759780242730,-2868.91761716,0.00029558,2]
[389667903,1759780242739,-34232.701652,0.0002957,3]
[389667904,1759780242748,-28421.3241863,0.0002957,3]
[389667906,1759780242758,-500.0,0.00029573,5]
[389667907,1759780242767,-500.0,0.0002958,7]
[389667908,1759780242776,-512.97085665,0.0002958,7]
[389667909,1759780242785,-20963.5,0.0002958,7]
[389667910,1759780242794,-500.0,0.0002958,7]
[389667911,1759780242803,-7977.48,0.0002958,7]
[389667912,1759780242814,-28421.3241863,0.0002958,3]
[389667913,1759780242824,-151.0,0.00029584,7]
[389667915,1759780242834,-1984.0305,0.00029584,2]
[389667916,1759780242843,-34232.701652,0.00029586,3]
[389667917,1759780242851,-500.0,0.0002959,2]
[389667918,1759780242862,-150.0,0.0002959,2]
[389667919,1759780242872,-150.0,0.0002959,2]
[389667920,1759780242881,-500.0,0.0002959,2]
[389667921,1759780242891,-150.0,0.0002959,2]
[389667922,1759780242900,-150.0,0.0002959,2]
[389667923,1759780242909,-150.0,0.0002959,2]
[389667924,1759780242918,-150.0,0.0002959,2]
[389667925,1759780242927,-150.0,0.0002959,2]
[389667926,1759780242936,-150.0,0.0002959,2]
[389667927,1759780242946,-150.0,0.0002959,2]
[389667928,1759780242956,-150.0,0.0002959,2]
[389667929,1759780242965,-150.0,0.0002959,2]
[389667930,1759780242974,-500.0,0.0002959,2]
[389667931,1759780242983,-500.0,0.0002959,2]
[389667932,1759780242993,-150.0,0.0002959,2]
[389667933,1759780243003,-150.0,0.0002959,2]
[389667934,1759780243012,-150.0,0.0002959,2]
[389667935,1759780243023,-150.0,0.0002959,2]
[389667936,1759780243032,-500.0,0.0002959,2]
[389667937,1759780243042,-150.0,0.0002959,2]
[389667938,1759780243051,-150.0,0.0002959,2]
[389667939,1759780243060,-500.0,0.0002959,2]
[389667940,1759780243070,-500.0,0.0002959,2]
[389667941,1759780243079,-34232.701652,0.0002959,3]
[389667942,1759780243089,-56842.6483726,0.0002959,3]
[389667943,1759780243098,-150.0,0.0002959,2]
[389667944,1759780243107,-500.0,0.0002959,2]
[389667945,1759780243117,-150.0,0.0002959,2]
[389667946,1759780243127,-500.0,0.0002959,2]
[389667947,1759780243137,-500.0,0.0002959,2]
[389667948,1759780243146,-152.72670243,0.00029593,15]
[389667949,1759780243155,-316.90336929,0.00029599,2]
[389667950,1759780243165,-150.0,0.00029599,20]
[389667951,1759780243174,-37033.65,0.00029599,7]
[389667952,1759780243183,-3631.06,0.00029599,7]
[389667953,1759780243193,-1938.73,0.00029599,7]
[389667954,1759780243202,-174.85507816,0.000296,2]
[389667955,1759780243211,-300.0,0.000296,10]
[389667956,1759780243220,-200.0,0.000296,10]
[389667957,1759780243230,-90411.0,0.000296,2]
[389667958,1759780243239,-840.64029818,0.00029602,7]
[389667959,1759780243248,-8679.60501541,0.00029602,7]
[389667960,1759780243257,-20252.41170261,0.00029605,7]
[389667961,1759780243267,-2586.76959893,0.00029605,7]
[389667962,1759780243276,-42323.988688,0.00029605,7]
[389667963,1759780243286,-668.71692078,0.00029606,7]
[389667964,1759780243295,-420.39275539,0.00029611,7]
[389667965,1759780243304,-34232.701652,0.00029614,3]
[389667966,1759780243313,-7762.05038744,0.00029615,7]
[389667967,1759780243322,-9258.24534976,0.00029616,7]
[389667968,1759780243332,-2101.96377695,0.00029616,7]
[389667970,1759780243342,-8679.60501541,0.00029619,7]
[389667971,1759780243352,-2101.96377695,0.00029621,7]
[389667972,1759780243363,-3881.02519373,0.00029623,7]
[389667973,1759780243372,-1634.57835756,0.00029624,7]
[389667974,1759780243381,-500.0,0.00029624,7]
[389667975,1759780243391,-500.0,0.00029624,7]
[389667978,1759780243401,-158.41764806,0.00029624,7]
[389667979,1759780243410,-500.0,0.00029624,7]
[389667980,1759780243419,-500.0,0.00029624,7]
[389667981,1759780243428,-500.0,0.00029624,7]
[389667982,1759780243438,-500.0,0.00029624,7]
[389667983,1759780243447,-379.73687285,0.00029624,7]
[389667984,1759780243457,-500.0,0.00029624,7]
[389667985,1759780243466,-500.0,0.00029624,7]
[389667986,1759780243475,-1000.0,0.00029624,30]
[389667987,1759780243484,-896.12,0.00029624,7]
[389667988,1759780243494,-500.0,0.00029624,7]
[389667989,1759780243503,-500.0,0.00029624,7]
[389667990,1759780243512,-500.0,0.00029624,7]
[389667991,1759780243522,-500.0,0.00029624,7]
[389667992,1759780243532,-505.17506153,0.00029624,7]
[389667993,1759780243542,-3488.98,0.00029624,7]
[389667994,1759780243551,-3970.32627373,0.00029625,7]
[389667995,1759780243560,-2315.13,0.00029625,7]
[389667996,1759780243569,-553.19,0.00029625,7]
[389667997,1759780243578,-500.0,0.00029625,7]
[389667998,1759780243587,-500.0,0.00029625,7]
[389667999,1759780243597,-224.28103852,0.00029625,7]
[389668000,1759780243606,-500.0,0.00029625,7]
[389668001,1759780243615,-500.0,0.00029625,7]
[389668002,1759780243624,-1634.57835756,0.00029625,7]
[389668003,1759780243633,-8679.60501541,0.00029627,7]
[389668004,1759780243643,-2942.74928772,0.00029628,7]
[389668005,1759780243652,-3035.64552121,0.00029628,7]
[389668006,1759780243661,-1261.17826618,0.00029629,7]
[389668007,1759780243670,-65126.05695455,0.0002963,7]
[389668008,1759780243832,-10853.16099599,0.0002963,7]
[389668009,1759780243854,-931.57824263,0.00029534,2]
[389668010,1759780243867,-23304.42472494,0.0002963,7]
[389668011,1759780243959,-627.31,0.00025299,2]
[389668012,1759780243968,-1783.69,0.0002963,7]
[389668013,1759780243986,-999.99998349,0.0002963,7]
[389668014,1759780243997,-860.93732786,0.0002963,7]
[389668015,1759780244008,-3674.57190331,0.0002963,7]
[389668016,1759780244100,-475.11,0.00029315,7]
[389668017,1759780244109,-24655.798277,0.0002963,7]
[389668018,1759780244128,-6406.46,0.0002963,7]
[389668019,1759780244139,-60267.49999999,0.0002963,7]
[389668020,1759780244151,-21581.10462738,0.0002963,7]
[389668117,1759780250597,-18155.50350247,0.0002963,7]
[389668118,1759780250606,-420.39275539,0.00029631,7]
[389668119,1759780250615,-155.30489138,0.00029632,2]
[389668120,1759780250624,-986.56592256,0.00029632,7]
[389668121,1759780250633,-168.08880167,0.00029633,7]
[389668122,1759780250642,-467.02238777,0.00029634,7]
[389668123,1759780250652,-1634.57835756,0.00029634,7]
[389668124,1759780250661,-986.56592256,0.00029636,7]
[389668125,1759780250669,-9258.24534976,0.00029637,7]
[389668126,1759780250678,-20252.41170261,0.00029637,7]
[389668127,1759780250687,-9258.24534976,0.0002964,7]
[389668128,1759780250695,-3881.02519373,0.0002964,7]
[389668129,1759780250704,-28421.3241863,0.00029643,3]
[389668130,1759780250713,-357.90159303,0.00029644,2]
[389668131,1759780250722,-3035.64552121,0.00029644,7]
[389668132,1759780250731,-34232.701652,0.00029644,3]
[389668133,1759780250740,-28421.3241863,0.00029644,3]
[389668134,1759780250748,-34232.701652,0.00029646,3]
[389668135,1759780250757,-28421.3241863,0.00029646,3]
[389668136,1759780250766,-467.02238777,0.00029646,7]
[389668137,1759780250775,-756.70695971,0.00029648,7]
[389668138,1759780250783,-200.0,0.00029648,2]
[389668139,1759780250792,-168.08880167,0.00029649,7]
[389668140,1759780250802,-8679.60501542,0.00029653,7]
[389668141,1759780250812,-28421.3241863,0.00029653,3]
[389668142,1759780250822,-500.0,0.00029654,7]
[389668143,1759780250832,-20963.5,0.00029654,7]
[389668144,1759780250841,-37033.65,0.00029654,7]
[389668145,1759780250851,-366.6734702,0.00029654,7]
[389668146,1759780250863,-3631.06,0.00029654,7]
[389668147,1759780250872,-7977.48,0.00029654,7]
[389668148,1759780250882,-1938.73,0.00029654,7]
[389668149,1759780250892,-153.50434865,0.00029655,7]
[389668150,1759780250901,-815.92157843,0.00029657,2]
[389668151,1759780250911,-1634.57835756,0.00029657,7]
[389668152,1759780250919,-34232.701652,0.00029658,3]
[389668153,1759780250928,-151.0,0.00029658,30]
[389668154,1759780250938,-151.0,0.00029658,30]
[389668155,1759780250946,-151.0,0.00029658,30]
[389668156,1759780250955,-151.0,0.00029658,30]
[389668157,1759780250964,-1330.405955,0.00029658,30]
[389668158,1759780250973,-271.431064,0.00029658,30]
[389668159,1759780250982,-1330.405955,0.00029658,30]
[389668160,1759780250991,-271.431064,0.00029658,30]
[389668161,1759780250999,-1330.405955,0.00029658,30]
[389668162,1759780251009,-271.431064,0.00029658,30]
[389668163,1759780251018,-1330.405955,0.00029658,30]
[389668164,1759780251027,-271.431064,0.00029658,30]
[389668165,1759780251037,-151.0,0.00029658,30]
[389668166,1759780251046,-151.0,0.00029658,30]
[389668167,1759780251057,-151.0,0.00029658,30]
[389668168,1759780251066,-169.420139,0.00029658,30]
[389668169,1759780251075,-151.0,0.00029658,30]
[389668170,1759780251084,-151.0,0.00029658,30]
[389668171,1759780251094,-151.0,0.00029658,30]
[389668172,1759780251103,-169.420139,0.00029658,30]
[389668173,1759780251112,-256.836515,0.00029658,30]
[389668174,1759780251122,-151.0,0.00029658,30]
[389668175,1759780251130,-169.420139,0.00029658,30]
[389668176,1759780251139,-397.195398,0.00029658,30]
[389668177,1759780251149,-256.836515,0.00029658,30]
[389668178,1759780251158,-151.0,0.00029658,30]
[389668179,1759780251168,-397.195398,0.00029658,30]
[389668180,1759780251177,-169.420139,0.00029658,30]
[389668181,1759780251187,-256.836515,0.00029658,30]
[389668182,1759780251196,-397.195398,0.00029658,30]
[389668183,1759780251205,-256.836515,0.00029658,30]
[389668184,1759780251215,-151.0,0.00029658,30]
[389668185,1759780251224,-397.195398,0.00029658,30]
[389668186,1759780251233,-151.0,0.00029658,30]
[389668187,1759780251242,-151.0,0.00029658,30]
[389668188,1759780251252,-151.0,0.00029658,30]
[389668189,1759780251262,-151.0,0.00029658,30]
[389668190,1759780251271,-151.0,0.00029658,30]
[389668191,1759780251282,-151.0,0.00029658,30]
[389668192,1759780251291,-151.0,0.00029658,30]
[389668193,1759780251300,-151.0,0.00029658,30]
[389668194,1759780251309,-151.0,0.00029658,30]
[389668195,1759780251318,-151.0,0.00029658,30]
[389668196,1759780251327,-151.0,0.00029658,30]
[389668197,1759780251335,-264.102382,0.00029658,30]